[Event "Titled Tuesday Blitz June 6 Early 2023"]
[White "Pranav Anand"]
[Black "Manukian, Artak"]
[WhiteFideId "46626786"]
[BlackFideId "13301373"]
[WhiteElo "2389"]
[BlackElo "2130"]
[Result "1-0"]
[Round "2"]
[TimeControl "180+2"]
[Date "2023.06.06"]
[WhiteClock "0:02:09"]
[BlackClock "0:01:41"]
[Board "116"]

1. Nf3 {[%clk 0:03:00]}  g6 {[%clk 0:02:58]} 2. h4 {[%clk 0:03:00]}  h5 {[%clk 0:02:58]} 3. d4 {[%clk 0:03:01]}  d5 {[%clk 0:02:57]} 4. Nc3 {[%clk 0:03:01]}  Nf6 {[%clk 0:02:56]} 5. Bf4 {[%clk 0:03:01]}  c6 {[%clk 0:02:51]} 6. e3 {[%clk 0:03:01]}  Bg4 {[%clk 0:02:32]} 7. Be2 {[%clk 0:02:58]}  e6 {[%clk 0:02:32]} 8. Ne5 {[%clk 0:02:57]}  Bxe2 {[%clk 0:02:31]} 9. Qxe2 {[%clk 0:02:58]}  Bb4 {[%clk 0:02:30]} 10. f3 {[%clk 0:02:53]}  Nfd7 {[%clk 0:02:29]} 11. Nd3 {[%clk 0:02:52]}  Bxc3+ {[%clk 0:02:28]} 12. bxc3 {[%clk 0:02:53]}  Qa5 {[%clk 0:02:28]} 13. Qd2 {[%clk 0:02:53]}  Nb6 {[%clk 0:02:25]} 14. O-O {[%clk 0:02:48]}  Nc4 {[%clk 0:02:23]} 15. Qe1 {[%clk 0:02:48]}  O-O {[%clk 0:02:20]} 16. a4 {[%clk 0:02:45]}  Nd7 {[%clk 0:02:19]} 17. Kh2 {[%clk 0:02:42]}  Rae8 {[%clk 0:02:14]} 18. Bh6 {[%clk 0:02:40]}  e5 {[%clk 0:02:13]} 19. e4 {[%clk 0:02:22]}  dxe4 {[%clk 0:02:05]} 20. fxe4 {[%clk 0:02:23]}  exd4 {[%clk 0:02:05]} 21. cxd4 {[%clk 0:02:23]}  Qc7+ {[%clk 0:01:56]} 22. e5 {[%clk 0:02:11]}  f5 {[%clk 0:01:56]} 23. Bxf8 {[%clk 0:02:11]}  Nxf8 {[%clk 0:01:55]} 24. Qg3 {[%clk 0:02:11]}  Nd2 {[%clk 0:01:48]} 25. Rxf5 {[%clk 0:02:09]}  Ne4 {[%clk 0:01:45]} 26. Rxf8+ {[%clk 0:02:09]}  Kxf8 {[%clk 0:01:41]} 27. Qxg6 {[%clk 0:02:09]} 1-0


[Site "https://www.chess.com"]

[Event "Titled Tuesday Blitz June 6 Early 2023"]
[White "Matveeva, Olga"]
[Black "Dragnev, Valentin"]
[WhiteFideId "24107018"]
[BlackFideId "1634852"]
[WhiteElo "2009"]
[BlackElo "2487"]
[Result "0-1"]
[Round "2"]
[TimeControl "180+2"]
[Date "2023.06.06"]
[WhiteClock "0:00:13"]
[BlackClock "0:01:38"]
[Board "117"]

1. d4 {[%clk 0:03:00]}  Nf6 {[%clk 0:02:59]} 2. c4 {[%clk 0:03:01]}  e6 {[%clk 0:02:59]} 3. g3 {[%clk 0:03:00]}  Bb4+ {[%clk 0:02:57]} 4. Bd2 {[%clk 0:03:00]}  c5 {[%clk 0:02:58]} 5. Nf3 {[%clk 0:02:53]}  O-O {[%clk 0:02:58]} 6. Bg2 {[%clk 0:02:52]}  Qb6 {[%clk 0:02:58]} 7. O-O {[%clk 0:02:45]}  Nc6 {[%clk 0:02:57]} 8. Bxb4 {[%clk 0:02:37]}  Qxb4 {[%clk 0:02:57]} 9. d5 {[%clk 0:02:16]}  exd5 {[%clk 0:02:44]} 10. cxd5 {[%clk 0:02:15]}  Qxb2 {[%clk 0:02:45]} 11. Nbd2 {[%clk 0:02:06]}  Nb4 {[%clk 0:02:26]} 12. Nc4 {[%clk 0:01:56]}  Qc2 {[%clk 0:02:21]} 13. a3 {[%clk 0:01:38]}  Qxd1 {[%clk 0:02:20]} 14. Rfxd1 {[%clk 0:01:39]}  Nbxd5 {[%clk 0:02:19]} 15. Nfe5 {[%clk 0:01:30]}  Nc3 {[%clk 0:02:18]} 16. Rd2 {[%clk 0:01:19]}  d5 {[%clk 0:02:19]} 17. Nd6 {[%clk 0:01:13]}  Rb8 {[%clk 0:01:59]} 18. Rc1 {[%clk 0:01:09]}  d4 {[%clk 0:01:59]} 19. e3 {[%clk 0:01:05]}  Be6 {[%clk 0:01:47]} 20. exd4 {[%clk 0:01:03]}  cxd4 {[%clk 0:01:48]} 21. Nxb7 {[%clk 0:00:56]}  Rfc8 {[%clk 0:01:47]} 22. Kh1 {[%clk 0:00:48]}  Nce4 {[%clk 0:01:37]} 23. Rxc8+ {[%clk 0:00:40]}  Bxc8 {[%clk 0:01:36]} 24. Bxe4 {[%clk 0:00:16]}  Nxe4 {[%clk 0:01:37]} 25. Rxd4 {[%clk 0:00:13]}  Bxb7 {[%clk 0:01:38]} 0-1


[Site "https://www.chess.com"]

[Event "Titled Tuesday Blitz June 6 Early 2023"]
[White "Vivas Zamora, Fabian Ernesto"]
[Black "Harsh Suresh"]
[WhiteFideId "3902480"]
[BlackFideId "45018464"]
[WhiteElo "2244"]
[BlackElo "2209"]
[Result "0-1"]
[Round "2"]
[TimeControl "180+2"]
[Date "2023.06.06"]
[WhiteClock "0:00:04"]
[BlackClock "0:01:00"]
[Board "119"]

1. e4 {[%clk 0:03:00]}  b6 {[%clk 0:02:59]} 2. d4 {[%clk 0:02:54]}  Bb7 {[%clk 0:03:00]} 3. Nc3 {[%clk 0:02:53]}  e6 {[%clk 0:02:54]} 4. Bd3 {[%clk 0:02:51]}  g6 {[%clk 0:02:51]} 5. Nf3 {[%clk 0:02:40]}  Bg7 {[%clk 0:02:51]} 6. h4 {[%clk 0:02:40]}  h6 {[%clk 0:02:51]} 7. Bf4 {[%clk 0:02:23]}  d6 {[%clk 0:02:51]} 8. Qd2 {[%clk 0:02:21]}  Nd7 {[%clk 0:02:51]} 9. O-O-O {[%clk 0:02:20]}  a6 {[%clk 0:02:42]} 10. Kb1 {[%clk 0:02:18]}  b5 {[%clk 0:02:38]} 11. Rhe1 {[%clk 0:01:31]}  Ne7 {[%clk 0:02:33]} 12. Qe3 {[%clk 0:01:06]}  Qb8 {[%clk 0:02:23]} 13. Nd2 {[%clk 0:00:52]}  Qa7 {[%clk 0:02:22]} 14. Nb3 {[%clk 0:00:50]}  Qb6 {[%clk 0:02:20]} 15. a4 {[%clk 0:00:38]}  Bc6 {[%clk 0:01:56]} 16. a5 {[%clk 0:00:29]}  Qa7 {[%clk 0:01:54]} 17. Na2 {[%clk 0:00:30]}  Bb7 {[%clk 0:01:53]} 18. Nb4 {[%clk 0:00:29]}  c5 {[%clk 0:01:44]} 19. dxc5 {[%clk 0:00:14]}  dxc5 {[%clk 0:01:45]} 20. Bxb5 {[%clk 0:00:06]}  axb5 {[%clk 0:01:42]} 21. Rxd7 {[%clk 0:00:06]}  Kxd7 {[%clk 0:01:16]} 22. Nxc5+ {[%clk 0:00:05]}  Ke8 {[%clk 0:01:17]} 23. Bc7 {[%clk 0:00:05]}  Rc8 {[%clk 0:01:05]} 24. Bb6 {[%clk 0:00:05]}  Qa8 {[%clk 0:01:06]} 25. Qd3 {[%clk 0:00:05]}  Bc6 {[%clk 0:01:03]} 26. Qd6 {[%clk 0:00:05]}  Qb8 {[%clk 0:01:00]} 27. Qd3 {[%clk 0:00:05]}  Qe5 {[%clk 0:01:00]} 28. Rd1 {[%clk 0:00:04]}  Qxb2# {[%clk 0:01:00]} 0-1


[Site "https://www.chess.com"]

[Event "Titled Tuesday Blitz June 6 Early 2023"]
[White "Kukhmazov, Arsen"]
[Black "Tarasova, Viktoriya"]
[WhiteFideId "24108260"]
[BlackFideId "4175840"]
[WhiteElo "2396"]
[BlackElo "2182"]
[Result "1-0"]
[Round "2"]
[TimeControl "180+2"]
[Date "2023.06.06"]
[WhiteClock "0:00:15"]
[BlackClock "0:00:02"]
[Board "121"]

1. d4 {[%clk 0:02:59]}  Nf6 {[%clk 0:02:58]} 2. c4 {[%clk 0:02:59]}  e6 {[%clk 0:02:59]} 3. Nf3 {[%clk 0:02:59]}  b6 {[%clk 0:02:58]} 4. a3 {[%clk 0:02:58]}  Bb7 {[%clk 0:02:58]} 5. Nc3 {[%clk 0:02:58]}  d5 {[%clk 0:02:58]} 6. Bg5 {[%clk 0:02:59]}  Be7 {[%clk 0:02:58]} 7. Bxf6 {[%clk 0:03:00]}  Bxf6 {[%clk 0:02:58]} 8. cxd5 {[%clk 0:03:00]}  exd5 {[%clk 0:02:58]} 9. g3 {[%clk 0:03:01]}  O-O {[%clk 0:02:58]} 10. Bg2 {[%clk 0:03:02]}  Nd7 {[%clk 0:02:58]} 11. O-O {[%clk 0:03:03]}  Re8 {[%clk 0:02:53]} 12. Rc1 {[%clk 0:03:00]}  Nf8 {[%clk 0:02:50]} 13. e3 {[%clk 0:03:00]}  Ne6 {[%clk 0:02:50]} 14. b4 {[%clk 0:02:54]}  a6 {[%clk 0:02:49]} 15. Ne5 {[%clk 0:02:47]}  c5 {[%clk 0:02:37]} 16. bxc5 {[%clk 0:02:47]}  bxc5 {[%clk 0:02:38]} 17. Rb1 {[%clk 0:02:48]}  Rb8 {[%clk 0:02:23]} 18. Nf3 {[%clk 0:01:32]}  cxd4 {[%clk 0:02:19]} 19. Nxd4 {[%clk 0:01:31]}  Nxd4 {[%clk 0:02:18]} 20. exd4 {[%clk 0:01:32]}  Qd6 {[%clk 0:02:15]} 21. Rb3 {[%clk 0:01:29]}  Bc6 {[%clk 0:02:13]} 22. Bf3 {[%clk 0:01:18]}  Rxb3 {[%clk 0:02:05]} 23. Qxb3 {[%clk 0:01:19]}  Rb8 {[%clk 0:01:57]} 24. Qa2 {[%clk 0:01:16]}  Bxd4 {[%clk 0:01:50]} 25. Nxd5 {[%clk 0:01:16]}  Rd8 {[%clk 0:01:40]} 26. Rd1 {[%clk 0:01:15]}  Bxd5 {[%clk 0:01:10]} 27. Bxd5 {[%clk 0:01:11]}  Qxd5 {[%clk 0:01:08]} 28. Qe2 {[%clk 0:01:11]}  a5 {[%clk 0:01:04]} 29. Rb1 {[%clk 0:01:01]}  h6 {[%clk 0:01:02]} 30. Rb5 {[%clk 0:01:01]}  Qc6 {[%clk 0:00:52]} 31. Rxa5 {[%clk 0:01:00]}  Bc3 {[%clk 0:00:45]} 32. Ra6 {[%clk 0:00:45]}  Qb7 {[%clk 0:00:43]} 33. h4 {[%clk 0:00:35]}  Rd2 {[%clk 0:00:37]} 34. Qe8+ {[%clk 0:00:31]}  Kh7 {[%clk 0:00:37]} 35. Rc6 {[%clk 0:00:27]}  Bf6 {[%clk 0:00:16]} 36. Qe4+ {[%clk 0:00:26]}  g6 {[%clk 0:00:12]} 37. Qf3 {[%clk 0:00:20]}  Qb1+ {[%clk 0:00:08]} 38. Kg2 {[%clk 0:00:19]}  Rd1 {[%clk 0:00:05]} 39. Rxf6 {[%clk 0:00:15]}  Rg1+ {[%clk 0:00:05]} 40. Kh2 {[%clk 0:00:16]}  Kg8 {[%clk 0:00:02]} 41. Rxf7 {[%clk 0:00:15]} 1-0


[Site "https://www.chess.com"]

[Event "Titled Tuesday Blitz June 6 Early 2023"]
[White "Lopez Del Alamo, Antonio"]
[Black "Weetik, Vjacheslav"]
[WhiteFideId "2227339"]
[BlackFideId "4153472"]
[WhiteElo "2175"]
[BlackElo "2469"]
[Result "0-1"]
[Round "2"]
[TimeControl "180+2"]
[Date "2023.06.06"]
[WhiteClock "0:00:02"]
[BlackClock "0:00:39"]
[Board "123"]

1. e4 {[%clk 0:02:59]}  c6 {[%clk 0:03:00]} 2. d4 {[%clk 0:02:35]}  d5 {[%clk 0:03:00]} 3. exd5 {[%clk 0:02:14]}  cxd5 {[%clk 0:03:00]} 4. Bd3 {[%clk 0:02:14]}  Nc6 {[%clk 0:03:00]} 5. c3 {[%clk 0:02:12]}  g6 {[%clk 0:03:00]} 6. Nf3 {[%clk 0:02:04]}  Bf5 {[%clk 0:03:00]} 7. Be2 {[%clk 0:02:03]}  Bg7 {[%clk 0:03:00]} 8. O-O {[%clk 0:01:58]}  Nf6 {[%clk 0:03:00]} 9. Re1 {[%clk 0:01:57]}  O-O {[%clk 0:03:00]} 10. Nbd2 {[%clk 0:01:57]}  Ne4 {[%clk 0:02:59]} 11. Nf1 {[%clk 0:01:54]}  f6 {[%clk 0:02:15]} 12. Ne3 {[%clk 0:01:24]}  Bc8 {[%clk 0:01:59]} 13. Nd2 {[%clk 0:01:12]}  f5 {[%clk 0:01:56]} 14. Bf3 {[%clk 0:00:49]}  e6 {[%clk 0:01:54]} 15. Ndf1 {[%clk 0:00:44]}  g5 {[%clk 0:01:52]} 16. Bxe4 {[%clk 0:00:37]}  dxe4 {[%clk 0:01:52]} 17. Nc4 {[%clk 0:00:24]}  b5 {[%clk 0:01:47]} 18. Na3 {[%clk 0:00:22]}  a6 {[%clk 0:01:47]} 19. f3 {[%clk 0:00:22]}  e5 {[%clk 0:01:38]} 20. d5 {[%clk 0:00:19]}  Ne7 {[%clk 0:01:31]} 21. fxe4 {[%clk 0:00:19]}  fxe4 {[%clk 0:01:31]} 22. Ne3 {[%clk 0:00:20]}  Bb7 {[%clk 0:01:28]} 23. c4 {[%clk 0:00:13]}  Rc8 {[%clk 0:01:23]} 24. b3 {[%clk 0:00:12]}  bxc4 {[%clk 0:01:17]} 25. bxc4 {[%clk 0:00:13]}  Ng6 {[%clk 0:01:18]} 26. g3 {[%clk 0:00:12]}  Nf4 {[%clk 0:01:17]} 27. gxf4 {[%clk 0:00:11]}  exf4 {[%clk 0:01:17]} 28. Ng2 {[%clk 0:00:09]}  Bxa1 {[%clk 0:01:17]} 29. Bd2 {[%clk 0:00:07]}  Bg7 {[%clk 0:01:05]} 30. Rxe4 {[%clk 0:00:05]}  f3 {[%clk 0:00:46]} 31. Ne3 {[%clk 0:00:02]}  f2+ {[%clk 0:00:47]} 32. Kf1 {[%clk 0:00:02]}  Qd7 {[%clk 0:00:46]} 33. Qg4 {[%clk 0:00:02]}  Qa4 {[%clk 0:00:39]} 0-1


[Site "https://www.chess.com"]

[Event "Titled Tuesday Blitz June 6 Early 2023"]
[White "qx4z"]
[Black "Xie, Bryan"]
[BlackFideId "30941296"]
[WhiteElo "2740"]
[BlackElo "2033"]
[Result "1-0"]
[Round "2"]
[TimeControl "180+2"]
[Date "2023.06.06"]
[WhiteClock "0:01:17"]
[BlackClock "0:00:02"]
[Board "124"]

1. d4 {[%clk 0:03:00]}  Nf6 {[%clk 0:02:56]} 2. Bf4 {[%clk 0:03:01]}  e6 {[%clk 0:02:49]} 3. e3 {[%clk 0:03:01]}  b6 {[%clk 0:02:49]} 4. Qf3 {[%clk 0:03:00]}  Nc6 {[%clk 0:02:45]} 5. Nc3 {[%clk 0:03:00]}  Bb7 {[%clk 0:02:45]} 6. O-O-O {[%clk 0:03:00]}  Be7 {[%clk 0:02:38]} 7. g4 {[%clk 0:03:00]}  h6 {[%clk 0:02:22]} 8. Nge2 {[%clk 0:02:58]}  Na5 {[%clk 0:02:15]} 9. e4 {[%clk 0:02:57]}  d5 {[%clk 0:02:04]} 10. e5 {[%clk 0:02:57]}  Nd7 {[%clk 0:01:58]} 11. Ng3 {[%clk 0:02:46]}  c5 {[%clk 0:01:58]} 12. h4 {[%clk 0:02:25]}  cxd4 {[%clk 0:01:32]} 13. Nb5 {[%clk 0:02:17]}  a6 {[%clk 0:01:30]} 14. Nxd4 {[%clk 0:02:17]}  Bxh4 {[%clk 0:01:14]} 15. Nh5 {[%clk 0:02:17]}  O-O {[%clk 0:01:00]} 16. Qh3 {[%clk 0:01:54]}  g5 {[%clk 0:00:29]} 17. Bg3 {[%clk 0:01:52]}  Nc6 {[%clk 0:00:19]} 18. Bxh4 {[%clk 0:01:50]}  gxh4 {[%clk 0:00:15]} 19. Qe3 {[%clk 0:01:50]}  Qg5 {[%clk 0:00:05]} 20. f4 {[%clk 0:01:50]}  Qe7 {[%clk 0:00:03]} 21. Nxc6 {[%clk 0:01:21]}  Bxc6 {[%clk 0:00:03]} 22. g5 {[%clk 0:01:13]}  hxg5 {[%clk 0:00:03]} 23. fxg5 {[%clk 0:01:14]}  d4 {[%clk 0:00:02]} 24. Rxd4 {[%clk 0:01:14]}  Bxh1 {[%clk 0:00:02]} 25. Rxd7 {[%clk 0:01:15]}  Qxd7 {[%clk 0:00:02]} 26. Nf6+ {[%clk 0:01:15]}  Kg7 {[%clk 0:00:03]} 27. Nxd7 {[%clk 0:01:16]}  Rfd8 {[%clk 0:00:02]} 28. Nf6 {[%clk 0:01:16]}  Rac8 {[%clk 0:00:02]} 29. Bd3 {[%clk 0:01:16]}  Bc6 {[%clk 0:00:02]} 30. g6 {[%clk 0:01:16]}  fxg6 {[%clk 0:00:02]} 31. Qg5 {[%clk 0:01:16]}  Kf7 {[%clk 0:00:02]} 32. Qxg6+ {[%clk 0:01:17]} 1-0


[Site "https://www.chess.com"]

[Event "Titled Tuesday Blitz June 6 Early 2023"]
[White "FREDERICKtheMATE"]
[Black "Dimitrov, Atanas"]
[BlackFideId "2901315"]
[WhiteElo "2374"]
[BlackElo "2705"]
[Result "0-1"]
[Round "2"]
[TimeControl "180+2"]
[Date "2023.06.06"]
[WhiteClock "0:01:46"]
[BlackClock "0:01:07"]
[Board "127"]

1. Nf3 {[%clk 0:03:00]}  d5 {[%clk 0:02:59]} 2. g3 {[%clk 0:03:01]}  Nf6 {[%clk 0:02:59]} 3. Bg2 {[%clk 0:03:01]}  c5 {[%clk 0:02:59]} 4. O-O {[%clk 0:03:02]}  Nc6 {[%clk 0:03:00]} 5. d3 {[%clk 0:03:02]}  e5 {[%clk 0:02:59]} 6. c4 {[%clk 0:03:02]}  d4 {[%clk 0:02:59]} 7. Nbd2 {[%clk 0:03:01]}  Bd6 {[%clk 0:02:56]} 8. Ne4 {[%clk 0:03:01]}  Nxe4 {[%clk 0:02:56]} 9. dxe4 {[%clk 0:03:01]}  O-O {[%clk 0:02:56]} 10. Ne1 {[%clk 0:03:01]}  Be6 {[%clk 0:02:55]} 11. b3 {[%clk 0:03:01]}  a6 {[%clk 0:02:51]} 12. a4 {[%clk 0:03:00]}  b5 {[%clk 0:02:47]} 13. axb5 {[%clk 0:02:59]}  axb5 {[%clk 0:02:48]} 14. Rxa8 {[%clk 0:02:58]}  Qxa8 {[%clk 0:02:49]} 15. cxb5 {[%clk 0:02:57]}  Na5 {[%clk 0:02:50]} 16. b4 {[%clk 0:02:52]}  cxb4 {[%clk 0:02:46]} 17. Nd3 {[%clk 0:02:52]}  Bc4 {[%clk 0:02:35]} 18. Bd2 {[%clk 0:02:46]}  b3 {[%clk 0:02:05]} 19. Qa1 {[%clk 0:02:43]}  Nb7 {[%clk 0:02:02]} 20. Qb2 {[%clk 0:02:39]}  Qa2 {[%clk 0:01:58]} 21. Rb1 {[%clk 0:02:34]}  Ra8 {[%clk 0:01:53]} 22. Bc1 {[%clk 0:02:23]}  f6 {[%clk 0:01:30]} 23. f4 {[%clk 0:02:19]}  Qxb2 {[%clk 0:01:23]} 24. Bxb2 {[%clk 0:02:19]}  Bxb5 {[%clk 0:01:22]} 25. Bh3 {[%clk 0:02:11]}  Kf7 {[%clk 0:01:19]} 26. fxe5 {[%clk 0:02:08]}  fxe5 {[%clk 0:01:20]} 27. Kf2 {[%clk 0:02:01]}  Bxd3 {[%clk 0:01:13]} 28. exd3 {[%clk 0:02:00]}  Nc5 {[%clk 0:01:13]} 29. Bf1 {[%clk 0:01:56]}  Ra2 {[%clk 0:01:13]} 30. Ke1 {[%clk 0:01:51]}  Na4 {[%clk 0:01:07]} 31. Bc1 {[%clk 0:01:49]}  Bb4+ {[%clk 0:01:08]} 32. Kd1 {[%clk 0:01:46]}  Nc3+ {[%clk 0:01:07]} 33. Ke1 {[%clk 0:01:45]}  Nxb1+ {[%clk 0:01:08]} 34. Kd1 {[%clk 0:01:46]}  Rxh2 {[%clk 0:01:07]} 0-1


[Site "https://www.chess.com"]

[Event "Titled Tuesday Blitz June 6 Early 2023"]
[White "Matinian, Nikita"]
[Black "zsizsi99"]
[WhiteFideId "24129100"]
[WhiteElo "2422"]
[BlackElo "2373"]
[Result "0-1"]
[Round "2"]
[TimeControl "180+2"]
[Date "2023.06.06"]
[WhiteClock "0:00:01"]
[BlackClock "0:00:17"]
[Board "128"]

1. e4 {[%clk 0:02:51]}  c5 {[%clk 0:03:00]} 2. Nf3 {[%clk 0:02:50]}  d6 {[%clk 0:03:00]} 3. d4 {[%clk 0:02:50]}  cxd4 {[%clk 0:03:01]} 4. Nxd4 {[%clk 0:02:51]}  Nf6 {[%clk 0:03:01]} 5. Nc3 {[%clk 0:02:52]}  a6 {[%clk 0:03:01]} 6. Be2 {[%clk 0:02:52]}  e5 {[%clk 0:02:59]} 7. Nb3 {[%clk 0:02:52]}  Be7 {[%clk 0:02:59]} 8. f4 {[%clk 0:02:51]}  O-O {[%clk 0:02:51]} 9. O-O {[%clk 0:02:50]}  Nbd7 {[%clk 0:02:49]} 10. Kh1 {[%clk 0:02:46]}  b6 {[%clk 0:02:40]} 11. Bd3 {[%clk 0:02:38]}  Bb7 {[%clk 0:02:39]} 12. Qf3 {[%clk 0:02:37]}  Nc5 {[%clk 0:02:33]} 13. Nxc5 {[%clk 0:02:37]}  bxc5 {[%clk 0:02:25]} 14. fxe5 {[%clk 0:02:35]}  dxe5 {[%clk 0:02:25]} 15. Bg5 {[%clk 0:02:34]}  Nd7 {[%clk 0:02:17]} 16. Bxe7 {[%clk 0:02:29]}  Qxe7 {[%clk 0:02:18]} 17. Rae1 {[%clk 0:02:23]}  Nb6 {[%clk 0:02:05]} 18. Qh3 {[%clk 0:02:22]}  c4 {[%clk 0:01:59]} 19. Be2 {[%clk 0:02:20]}  Rad8 {[%clk 0:01:58]} 20. a4 {[%clk 0:02:13]}  Qb4 {[%clk 0:01:51]} 21. Rf3 {[%clk 0:02:04]}  Nxa4 {[%clk 0:01:46]} 22. Rb1 {[%clk 0:01:54]}  Rd2 {[%clk 0:01:32]} 23. Qg4 {[%clk 0:01:51]}  Bc8 {[%clk 0:01:16]} 24. Qg5 {[%clk 0:01:45]}  Rxc2 {[%clk 0:01:05]} 25. Nd5 {[%clk 0:01:42]}  Qd2 {[%clk 0:00:56]} 26. Qe7 {[%clk 0:01:04]}  Qxe2 {[%clk 0:00:29]} 27. Nf6+ {[%clk 0:00:50]}  gxf6 {[%clk 0:00:30]} 28. Rg3+ {[%clk 0:00:50]}  Bg4 {[%clk 0:00:30]} 29. h3 {[%clk 0:00:51]}  h5 {[%clk 0:00:26]} 30. Rg1 {[%clk 0:00:47]}  Kg7 {[%clk 0:00:21]} 31. Kh2 {[%clk 0:00:34]}  Qxe4 {[%clk 0:00:19]} 32. Rf1 {[%clk 0:00:32]}  Qg6 {[%clk 0:00:19]} 33. hxg4 {[%clk 0:00:28]}  h4 {[%clk 0:00:19]} 34. Rh3 {[%clk 0:00:28]}  Nxb2 {[%clk 0:00:18]} 35. Rxh4 {[%clk 0:00:21]}  Nd3 {[%clk 0:00:18]} 36. Rf3 {[%clk 0:00:02]}  Nf4 {[%clk 0:00:18]} 37. Rg3 {[%clk 0:00:03]}  Rh8 {[%clk 0:00:17]} 38. Rxh8 {[%clk 0:00:02]}  Kxh8 {[%clk 0:00:18]} 39. Qf8+ {[%clk 0:00:03]}  Kh7 {[%clk 0:00:17]} 40. Rf3 {[%clk 0:00:02]}  Rxg2+ {[%clk 0:00:16]} 41. Kh1 {[%clk 0:00:02]}  Qh6+ {[%clk 0:00:17]} 42. Qxh6+ {[%clk 0:00:02]}  Kxh6 {[%clk 0:00:17]} 43. g5+ {[%clk 0:00:02]}  Kxg5 {[%clk 0:00:17]} 44. Rxf4 {[%clk 0:00:01]}  Kxf4 {[%clk 0:00:16]} 45. Kxg2 {[%clk 0:00:01]}  c3 {[%clk 0:00:17]} 0-1


[Site "https://www.chess.com"]

[Event "Titled Tuesday Blitz June 6 Early 2023"]
[White "Fajdetic, Hrvoje"]
[Black "De La Colina, Nicolas"]
[WhiteFideId "14501945"]
[BlackFideId "30946921"]
[WhiteElo "2185"]
[BlackElo "2046"]
[Result "1-0"]
[Round "2"]
[TimeControl "180+2"]
[Date "2023.06.06"]
[WhiteClock "0:00:07"]
[BlackClock "0:00:01"]
[Board "129"]

1. d4 {[%clk 0:02:57]}  Nf6 {[%clk 0:02:59]} 2. Bf4 {[%clk 0:02:57]}  e6 {[%clk 0:02:59]} 3. e3 {[%clk 0:02:57]}  c5 {[%clk 0:02:59]} 4. Nd2 {[%clk 0:02:57]}  b6 {[%clk 0:02:58]} 5. Nc4 {[%clk 0:02:56]}  d5 {[%clk 0:02:42]} 6. Ne5 {[%clk 0:02:56]}  a6 {[%clk 0:02:42]} 7. c3 {[%clk 0:02:55]}  Bb7 {[%clk 0:02:34]} 8. Ngf3 {[%clk 0:02:45]}  Be7 {[%clk 0:02:28]} 9. Bd3 {[%clk 0:02:37]}  O-O {[%clk 0:02:27]} 10. g4 {[%clk 0:02:36]}  Nc6 {[%clk 0:02:20]} 11. Nxc6 {[%clk 0:02:27]}  Bxc6 {[%clk 0:02:21]} 12. Ne5 {[%clk 0:02:28]}  Bb7 {[%clk 0:02:18]} 13. g5 {[%clk 0:02:24]}  Ne4 {[%clk 0:02:16]} 14. h4 {[%clk 0:02:23]}  f6 {[%clk 0:02:08]} 15. Nf3 {[%clk 0:02:14]}  Bd6 {[%clk 0:01:54]} 16. Bxd6 {[%clk 0:01:40]}  Nxd6 {[%clk 0:01:55]} 17. Rg1 {[%clk 0:01:18]}  Kh8 {[%clk 0:01:51]} 18. Nh2 {[%clk 0:01:13]}  f5 {[%clk 0:01:02]} 19. Nf3 {[%clk 0:01:00]}  Qe7 {[%clk 0:00:58]} 20. Ne5 {[%clk 0:00:59]}  Nf7 {[%clk 0:00:54]} 21. Nxf7+ {[%clk 0:00:26]}  Qxf7 {[%clk 0:00:55]} 22. f4 {[%clk 0:00:26]}  Qe7 {[%clk 0:00:38]} 23. Qe2 {[%clk 0:00:21]}  b5 {[%clk 0:00:36]} 24. Kf2 {[%clk 0:00:18]}  Rac8 {[%clk 0:00:37]} 25. Rac1 {[%clk 0:00:17]}  Rc7 {[%clk 0:00:36]} 26. Rc2 {[%clk 0:00:16]}  Rfc8 {[%clk 0:00:37]} 27. Rcc1 {[%clk 0:00:14]}  Kg8 {[%clk 0:00:37]} 28. Rg3 {[%clk 0:00:13]}  Qd6 {[%clk 0:00:35]} 29. h5 {[%clk 0:00:13]}  cxd4 {[%clk 0:00:35]} 30. exd4 {[%clk 0:00:12]}  Qxf4+ {[%clk 0:00:35]} 31. Rf3 {[%clk 0:00:12]}  Qxc1 {[%clk 0:00:36]} 32. Qxe6+ {[%clk 0:00:11]}  Kh8 {[%clk 0:00:34]} 33. Qxf5 {[%clk 0:00:11]}  Qd2+ {[%clk 0:00:24]} 34. Kg3 {[%clk 0:00:10]}  Qe1+ {[%clk 0:00:24]} 35. Kh3 {[%clk 0:00:10]}  g6 {[%clk 0:00:14]} 36. Qf6+ {[%clk 0:00:09]}  Rg7 {[%clk 0:00:13]} 37. h6 {[%clk 0:00:08]}  Qh1+ {[%clk 0:00:07]} 38. Kg4 {[%clk 0:00:08]}  Qg2+ {[%clk 0:00:05]} 39. Rg3 {[%clk 0:00:08]}  Qd2 {[%clk 0:00:01]} 40. Qxg7# {[%clk 0:00:07]} 1-0


[Site "https://www.chess.com"]